bitfinex-derivatives/quotes_BTCF0:USTF0_20251103
["timestamp","ask_amount","ask_price","bid_price","bid_amount"]
[1762186929993,0.094009,106390.0,106380.0,0.2213041]
[1762186930194,0.227729,106390.0,106380.0,0.2213041]
[1762186930594,0.227729,106390.0,106380.0,0.2213078]
[1762186930902,0.13372,106390.0,106380.0,0.2213078]
[1762186931093,0.227729,106390.0,106380.0,0.2213078]
[1762186931900,0.61383887,106390.0,106380.0,0.0513]
[1762186932094,0.1502278,106380.0,106370.0,0.9209554]
[1762186932305,0.13372,106380.0,106370.0,0.9209554]
[1762186932497,0.927329,106390.0,106380.0,0.2213078]
[1762186933000,0.566529,106390.0,106380.0,0.2213078]
[1762186933300,0.2715178,106380.0,106370.0,0.82693]
[1762186933602,0.1502443,106370.0,106360.0,0.12729]
[1762186933803,0.05621,106350.0,106340.0,0.92100466]
[1762186934100,0.2715429,106360.0,106350.0,0.0940439]
[1762186934300,0.2715429,106360.0,106350.0,0.1453439]
[1762186934796,0.2695429,106360.0,106350.0,0.1453439]
[1762186934999,0.1729643,106350.0,106340.0,0.93714836]
[1762186935298,0.2849224,106360.0,106350.0,0.0940443]
[1762186935500,0.19088,106360.0,106350.0,0.1703243]
[1762186935797,1.5,106380.0,106370.0,0.2374566]
[1762186936191,1.5,106380.0,106370.0,0.5982566]
[1762186936603,0.02530987,106390.0,106380.0,0.2374476]
[1762186936796,0.63633072,106400.0,106390.0,0.2374388]
[1762186937100,1.7431083,106390.0,106380.0,0.8698109]
[1762186937292,1.7431083,106390.0,106380.0,0.4548109]
[1762186937494,0.2431171,106380.0,106370.0,0.7935403]
[1762186937797,0.2854471,106380.0,106370.0,0.4548203]
[1762186938004,0.2854471,106380.0,106370.0,0.5311003]
[1762186938302,0.2854471,106380.0,106360.0,0.1703148]
[1762186938303,0.2431264,106370.0,106360.0,0.1703148]
[1762186938505,0.2431353,106360.0,106350.0,0.5321191]
[1762186938702,0.1491,106360.0,106350.0,0.5992741]
[1762186938900,0.7935117,106370.0,106350.0,0.5992741]
[1762186938901,0.9426064,106370.0,106360.0,0.1703153]
[1762186939210,0.2854652,106360.0,106350.0,0.455839]
[1762186939392,0.19143,106360.0,106350.0,0.599269]
[1762186939706,0.942607,106370.0,106360.0,0.0940359]
[1762186939999,0.51000445,106370.0,106360.0,0.2374659]
[1762186940705,0.53216445,106370.0,106360.0,0.1703159]
[1762186940891,0.02226445,106370.0,106360.0,0.2374659]
[1762186941097,0.02226445,106370.0,106360.0,1.13172794]
[1762186941301,0.11629175,106370.0,106360.0,0.5761059]
[1762186941602,0.02226445,106370.0,106360.0,0.5761059]
[1762186941905,0.001,106370.0,106360.0,1.48547382]
[1762186942403,1e-07,106370.0,106360.0,1.48547382]
[1762186942801,0.03651775,106410.0,106400.0,0.18071]
[1762186943102,0.02527681,106410.0,106400.0,1.76469314]
[1762186943307,0.02527681,106410.0,106400.0,1.85870902]
[1762186943509,1e-08,106410.0,106400.0,1.85870902]
[1762186943697,6e-08,106430.0,106420.0,0.0939834]
[1762186943898,6e-08,106430.0,106420.0,1.36098544]
[1762186944300,6e-08,106430.0,106420.0,1.46402291]
[1762186944503,6e-08,106430.0,106420.0,1.69894291]
[1762186945103,0.06956015,106450.0,106440.0,0.2373958]
[1762186945299,0.05353713,106450.0,106440.0,0.9367558]
[1762186945499,0.05353713,106450.0,106440.0,0.84279]
[1762186945801,0.05353713,106450.0,106420.0,0.66158054]
[1762186945802,0.57946015,106450.0,106420.0,0.66158054]
[1762186946004,0.05054353,106440.0,106430.0,0.5759646]
[1762186946302,0.05054353,106440.0,106430.0,0.9367646]
[1762186946505,0.05054353,106440.0,106430.0,0.67681204]
[1762186946811,0.05054353,106440.0,106430.0,0.14343]
[1762186947006,0.41434353,106450.0,106440.0,0.0939658]
[1762186947206,0.48295353,106450.0,106440.0,0.1702458]
[1762186947408,0.54890353,106450.0,106440.0,0.07628]
[1762186947609,0.54890353,106450.0,106410.0,0.4640129]
[1762186947610,0.17282,106440.0,106410.0,0.7933079]
[1762186947910,0.13456,106430.0,106420.0,0.71603664]
[1762186948109,0.06861,106430.0,106420.0,0.78182664]
[1762186948307,0.06861,106430.0,106420.0,0.71949684]
[1762186948707,0.06861,106430.0,106420.0,0.62551224]
[1762186948901,0.42941,106430.0,106420.0,0.26471224]
[1762186949107,0.17282,106420.0,106410.0,0.33852]
[1762186949301,0.53362,106420.0,106400.0,0.47093224]
[1762186949509,0.06861,106410.0,106400.0,0.19892224]
[1762186949913,0.06861,106410.0,106400.0,0.35871564]
[1762186950115,0.1626046,106410.0,106400.0,0.26471224]
[1762186950407,0.17193351,106410.0,106400.0,0.26471224]
[1762186950611,0.2285546,106410.0,106400.0,0.29292564]
[1762186950807,0.14372024,106410.0,106400.0,0.13249224]
[1762186951106,0.0940036,106400.0,106390.0,0.35872124]
[1762186951312,0.0940036,106400.0,106390.0,0.26471224]
[1762186951612,0.2285724,106390.0,106380.0,0.1604512]
[1762186951809,0.2285724,106390.0,106380.0,0.2262412]
[1762186952012,0.2285724,106390.0,106380.0,0.22651344]
[1762186952406,0.5669724,106390.0,106380.0,0.14457101]
[1762186952604,0.3384,106390.0,106380.0,0.44816325]
[1762186952810,0.87402,106400.0,106390.0,0.1604423]
[1762186953005,0.53562,106400.0,106390.0,0.3771476]
[1762186953213,0.17482,106400.0,106390.0,0.4429376]
[1762186953511,0.002,106400.0,106390.0,0.86407256]
[1762186953711,1e-07,106400.0,106390.0,1.2315248]
[1762186953912,1e-07,106400.0,106390.0,1.2485543]
[1762186954209,0.53362,106440.0,106430.0,0.0939771]
[1762186954409,0.53362,106440.0,106420.0,0.49610283]
[1762186954608,0.13456,106430.0,106420.0,0.3384]
[1762186954812,0.13456,106430.0,106420.0,0.13249224]
[1762186955212,0.13456,106430.0,106420.0,0.29290764]
[1762186955412,0.13456,106430.0,106420.0,0.22647764]
[1762186955714,0.49536,106430.0,106410.0,0.98450935]
[1762186955910,0.13456,106430.0,106410.0,0.85690283]
[1762186956115,0.13456,106430.0,106420.0,0.22647764]
[1762186956306,0.47701372,106440.0,106430.0,0.0939767]
[1762186956508,0.87198,106440.0,106430.0,0.22646894]
[1762186956812,0.06861,106430.0,106420.0,0.19892224]
[1762186957009,0.42941,106430.0,106420.0,0.26471224]
[1762186957520,0.42941,106430.0,106420.0,0.29832636]
[1762186957719,0.43541,106430.0,106420.0,0.29832636]
[1762186958522,0.50136,106430.0,106420.0,0.05878061]
[1762186958915,0.83968,106430.0,106420.0,0.02516649]
[1762186959220,0.83968,106430.0,106420.0,0.25164433]
[1762186959413,0.83968,106430.0,106420.0,0.38386433]
[1762186959713,0.83968,106430.0,106420.0,0.15765873]
[1762186959914,0.50136,106430.0,106420.0,0.41747845]
[1762186960112,0.006,106430.0,106420.0,0.77827845]
[1762186960413,0.006,106430.0,106420.0,1.09139196]
[1762186960617,0.006,106430.0,106420.0,1.25767602]
[1762186961217,0.006,106430.0,106420.0,1.18535484]
[1762186961414,0.3668,106430.0,106420.0,0.75572248]
[1762186961617,0.3668,106430.0,106420.0,0.73059196]
[1762186962212,0.006,106430.0,106420.0,0.73059196]
[1762186962412,0.006,106430.0,106420.0,1.09139196]
[1762186963418,0.2345366,106430.0,106420.0,0.59593633]
[1762186963610,0.2345366,106430.0,106420.0,0.62349173]
[1762186963816,0.2345366,106430.0,106420.0,0.02511997]
[1762186964322,0.5953366,106430.0,106420.0,0.02511997]
[1762186964616,0.2647257,106420.0,106410.0,0.16651412]
[1762186964819,0.6255257,106420.0,106410.0,0.41813183]
[1762186965018,0.6255257,106420.0,106410.0,0.02513097]
[1762186965323,0.9637257,106420.0,106410.0,0.02513097]
[1762186966416,0.9637255,106420.0,106410.0,0.25161751]
[1762186966617,0.9637255,106420.0,106410.0,0.02513097]
[1762186966822,0.9677255,106420.0,106410.0,0.02513097]
[1762186967026,1.2026455,106420.0,106410.0,0.02513097]
[1762186967423,0.9677255,106420.0,106410.0,0.02513097]
[1762186968620,0.6295255,106420.0,106410.0,0.02513097]
[1762186969024,0.9676855,106420.0,106410.0,0.02513097]
[1762186969227,0.9676855,106420.0,106410.0,0.15273949]
[1762186969827,0.9676855,106420.0,106410.0,0.12760852]
[1762186970025,0.9676855,106420.0,106410.0,0.26010076]
[1762186970224,0.9676855,106420.0,106410.0,0.16610636]
[1762186970425,0.9676855,106420.0,106410.0,0.26010076]
[1762186970933,0.9676855,106420.0,106410.0,0.03361412]
[1762186971633,0.6295255,106420.0,106410.0,0.03361412]
[1762186971833,0.9676855,106420.0,106410.0,0.03361412]
[1762186972824,0.9676855,106420.0,106410.0,0.12760872]
[1762186973430,0.6295255,106420.0,106410.0,0.12760872]
[1762186973630,0.53554,106420.0,106410.0,0.26010096]
[1762186973826,0.17474,106420.0,106410.0,0.40980802]
[1762186974026,0.53554,106420.0,106410.0,0.27690802]
[1762186974225,0.53554,106420.0,106410.0,0.21650953]
[1762186974535,0.53554,106420.0,106410.0,0.31050403]
[1762186974930,0.53554,106420.0,106410.0,0.14441568]
[1762186975135,0.6295257,106420.0,106410.0,0.14441568]
[1762186975337,0.6295257,106420.0,106410.0,0.21466568]
[1762186975933,0.07261,106420.0,106410.0,0.77060792]
[1762186976532,0.004,106420.0,106410.0,0.77060792]
[1762186976737,0.004,106420.0,106410.0,0.72018674]
[1762186977542,0.004,106420.0,106410.0,0.98416552]
[1762186977751,0.004,106420.0,106410.0,1.11665776]
[1762186978643,0.004,106420.0,106410.0,1.21977776]
[1762186978843,0.004,106420.0,106410.0,1.15219845]
[1762186979548,0.07279,106420.0,106410.0,0.69742644]
[1762186979944,0.07279,106420.0,106410.0,1.12580575]
[1762186980141,0.07279,106420.0,106410.0,0.76500575]
[1762186980342,0.6257055,106420.0,106410.0,0.63251371]
[1762186980646,0.17392,106420.0,106410.0,0.76496595]
[1762186980946,0.17392,106420.0,106410.0,0.69738664]
[1762186981551,0.003,106420.0,106410.0,1.45465766]
[1762186981848,0.003,106420.0,106410.0,1.4715699]
[1762186982047,0.003,106420.0,106410.0,1.2366499]
[1762186982241,0.003,106420.0,106410.0,1.4715699]
[1762186982443,0.46921,106440.0,106430.0,0.2268768]
[1762186982749,0.53172,106440.0,106430.0,0.56951999]
[1762186982941,0.1313,106430.0,106420.0,0.06733319]
[1762186983146,0.4921,106430.0,106420.0,0.06733319]
[1762186983750,0.06879,106410.0,106400.0,0.78184349]
[1762186983955,0.42959,106410.0,106400.0,0.78184349]
[1762186984455,0.4921,106410.0,106400.0,0.78184349]
[1762186985250,0.4921,106410.0,106400.0,0.31098349]
[1762186985447,0.4921,106410.0,106400.0,0.08449155]
[1762186985646,0.4921,106410.0,106400.0,0.17849485]
[1762186985848,0.4921,106410.0,106400.0,0.44388709]
[1762186986049,0.4921,106410.0,106400.0,0.22649554]
[1762186986248,0.4921,106410.0,106390.0,0.38124289]
[1762186986249,0.17092,106400.0,106390.0,0.38124289]
[1762186986556,0.17092,106400.0,106390.0,0.44389289]
[1762186986854,0.17092,106400.0,106390.0,0.35940134]
[1762186987254,0.17092,106400.0,106390.0,0.72020134]
[1762186987455,0.17092,106400.0,106390.0,0.80457804]
[1762186987941,0.17092,106400.0,106390.0,0.44677804]
[1762186988141,0.17092,106400.0,106390.0,0.35276894]
[1762186988346,0.17092,106400.0,106390.0,0.44678104]
[1762186988648,0.53172,106400.0,106390.0,0.36240434]
[1762186988844,0.17092,106400.0,106390.0,0.80758104]
[1762186989247,0.4921,106410.0,106400.0,0.2269033]
[1762186989444,0.73834,106420.0,106410.0,0.2268945]
[1762186989445,0.17092,106420.0,106410.0,0.2268945]
[1762186989649,0.17092,106420.0,106410.0,0.44376344]
[1762186990054,0.17092,106420.0,106410.0,0.35938674]
[1762186990243,0.42959,106430.0,106420.0,0.07025]
[1762186990449,0.06879,106430.0,106420.0,0.69725784]
[1762186990643,0.53172,106440.0,106430.0,0.2268769]
[1762186990850,0.3608,106440.0,106430.0,0.43597797]
[1762186991050,0.3608,106440.0,106430.0,0.42683517]
[1762186991752,0.3638,106440.0,106430.0,0.42683517]
[1762186992158,0.53472,106440.0,106430.0,0.42683517]
[1762186993557,0.53472,106440.0,106430.0,0.29434293]
[1762186993757,0.53472,106440.0,106430.0,0.26539224]
[1762186994062,0.3638,106440.0,106430.0,0.1329]
[1762186994356,0.003,106450.0,106440.0,0.2215781]
[1762186994550,0.003,106450.0,106440.0,0.55397774]
[1762186994962,0.003,106450.0,106440.0,0.88281179]
[1762186995162,0.003,106450.0,106440.0,0.89175712]
[1762186995663,0.65778,106480.0,106470.0,0.2141104]
[1762186995857,0.5,106480.0,106470.0,1.07888529]
[1762186996054,0.5,106480.0,106470.0,0.71808529]
[1762186996255,0.65094,106480.0,106470.0,0.62410489]
[1762186996555,1.01174,106480.0,106470.0,0.25422693]
[1762186996752,0.65094,106480.0,106470.0,0.34816843]
[1762186996961,0.65094,106480.0,106470.0,0.74108639]
[1762186997162,0.65094,106480.0,106470.0,1.07884639]
[1762186997362,0.5,106480.0,106470.0,1.07884639]
[1762186997560,0.5,106480.0,106470.0,1.32209872]
[1762186998264,0.5,106480.0,106470.0,1.18960648]
[1762186998857,0.65094,106480.0,106470.0,0.51456011]
[1762186999158,0.65094,106480.0,106470.0,0.74099305]
[1762186999359,0.65094,106480.0,106470.0,1.07867305]
[1762186999664,0.65394,106480.0,106470.0,1.07867305]
[1762187000066,0.65394,106480.0,106470.0,0.52688235]
[1762187000259,0.65394,106480.0,106470.0,0.85612498]
[1762187001059,0.65394,106480.0,106470.0,0.97629498]
[1762187001254,0.65394,106480.0,106470.0,1.07023768]
[1762187001464,1.01474,106480.0,106470.0,0.02519274]
[1762187001761,1.35238,106480.0,106470.0,0.02519274]
[1762187001966,1.58718,106480.0,106470.0,0.02519274]
[1762187002961,0.15094,106460.0,106450.0,0.03359011]
[1762187003265,0.87254,106460.0,106450.0,0.03359011]
[1762187003466,1.21014,106460.0,106450.0,0.03359011]
[1762187003970,1.44498,106460.0,106450.0,0.03359011]
[1762187004265,0.15094,106460.0,106450.0,0.62084325]
[1762187004468,0.15094,106460.0,106450.0,0.68365325]
[1762187004663,0.15094,106460.0,106450.0,0.73417723]
[1762187004664,0.4885,106460.0,106450.0,0.73417723]
[1762187004858,0.15094,106460.0,106450.0,0.73417723]
[1762187005053,0.4885,106460.0,106450.0,0.70058712]
[1762187005468,0.15094,106460.0,106450.0,0.70058712]
[1762187005860,0.4885,106460.0,106450.0,0.70058712]
[1762187006163,0.4885,106460.0,106450.0,0.75794712]
[1762187006364,0.15094,106460.0,106450.0,0.75794712]
[1762187006571,0.4885,106460.0,106450.0,0.76094712]
[1762187006861,0.65186,106480.0,106470.0,0.2141835]
[1762187007060,0.98942,106480.0,106470.0,0.74108481]
[1762187007457,0.98938,106480.0,106470.0,0.74108481]
[1762187007764,0.83752,106480.0,106470.0,0.74108481]
[1762187008162,0.5,106480.0,106470.0,0.74108481]
[1762187008366,0.83752,106480.0,106470.0,0.83500357]
[1762187008561,0.5,106480.0,106470.0,0.83500357]
[1762187008861,0.5,106480.0,106470.0,1.01790941]
[1762187009068,0.5,106480.0,106470.0,0.89421749]
[1762187009362,0.5,106480.0,106470.0,1.22790066]
[1762187009568,0.03962,106500.0,106490.0,0.2141658]
[1762187009764,0.10057,106500.0,106490.0,0.70745804]
[1762187010066,0.06095,106500.0,106490.0,0.70745804]
[1762187010265,0.63866223,106520.0,106510.0,0.0939082]
[1762187010466,0.98499923,106520.0,106510.0,0.19403723]
[1762187010665,0.11908,106510.0,106500.0,0.34676843]
[1762187010968,0.11908,106510.0,106500.0,0.40818843]
[1762187011163,0.2525994,106520.0,106500.0,0.64874663]
[1762187011359,0.2129882,106510.0,106500.0,0.19403723]
[1762187011562,0.5737882,106510.0,106500.0,0.28795423]
[1762187011866,0.15711,106500.0,106490.0,0.05882]
[1762187012061,0.15711,106500.0,106480.0,0.68235439]
[1762187012062,0.11908,106490.0,106480.0,0.70866639]
[1762187012268,0.11908,106480.0,106470.0,0.80260599]
[1762187012459,0.49155,106480.0,106470.0,0.80260599]
[1762187012769,0.49155,106480.0,106470.0,0.60856876]
[1762187013265,0.49155,106480.0,106470.0,0.80260599]
[1762187013666,0.15411,106480.0,106470.0,0.80260599]
[1762187013870,0.49151,106480.0,106470.0,0.80260599]
[1762187014962,0.49151,106480.0,106470.0,0.80660599]
[1762187015164,0.15411,106480.0,106470.0,0.80660599]
[1762187015365,0.49147,106480.0,106470.0,0.80660599]
[1762187015566,0.49147,106480.0,106470.0,0.61256876]
[1762187015768,0.49147,106480.0,106470.0,0.80660599]
[1762187016077,0.15411,106480.0,106470.0,0.80660599]
[1762187016572,0.11908,106490.0,106480.0,0.2141766]
[1762187016772,0.11908,106490.0,106480.0,0.76901383]
[1762187016972,0.11908,106490.0,106480.0,0.80260299]
[1762187017272,0.11908,106510.0,106500.0,0.152739]
[1762187017465,0.45644,106510.0,106500.0,0.34677623]
[1762187017766,0.45644,106510.0,106500.0,0.34677583]
[1762187017973,0.45644,106510.0,106500.0,0.1527386]
[1762187018175,0.45644,106510.0,106500.0,0.34677583]
[1762187018375,0.11908,106510.0,106500.0,0.40819583]
[1762187019075,0.4564,106510.0,106500.0,0.40819583]
[1762187019275,0.11908,106510.0,106500.0,0.0939186]
[1762187019473,0.11908,106510.0,106500.0,0.2141586]
[1762187019678,0.4564,106510.0,106500.0,0.2141586]
[1762187020173,0.11908,106510.0,106500.0,0.40819583]
[1762187020378,0.11908,106510.0,106500.0,0.76899583]
[1762187020568,0.11908,106510.0,106500.0,0.91749583]
[1762187020770,0.06095,106510.0,106500.0,0.91749583]
[1762187020966,0.2129896,106510.0,106500.0,0.1485]
[1762187021173,0.2129896,106510.0,106480.0,0.48832136]
[1762187021174,0.2130072,106490.0,106480.0,0.48832136]
[1762187021367,0.2130072,106490.0,106480.0,0.45320916]
[1762187021567,0.2130072,106490.0,106480.0,0.39438916]
[1762187021768,0.5738072,106490.0,106470.0,0.08400276]
[1762187021971,0.946126,106480.0,106470.0,0.03358916]
[1762187022174,0.2130249,106470.0,106460.0,0.08400276]
[1762187022376,0.11908,106470.0,106460.0,0.17795646]
[1762187022573,0.45632,106470.0,106460.0,0.39722453]
[1762187022775,0.45632,106470.0,106460.0,0.81944453]
[1762187022980,0.45632,106470.0,106460.0,0.45864453]
[1762187023179,0.11908,106470.0,106460.0,0.2646073]
[1762187023380,0.2130249,106470.0,106460.0,0.2646073]
[1762187023679,0.12802091,106470.0,106460.0,0.2031873]
[1762187023871,0.11908,106470.0,106460.0,0.82244453]
[1762187024179,0.15411,106480.0,106470.0,0.2141849]
[1762187024477,0.16537332,106480.0,106470.0,0.1444359]
[1762187024679,0.6113861,106480.0,106470.0,0.12760738]
[1762187024874,0.6113861,106480.0,106470.0,0.0939429]
[1762187025074,0.51745,106480.0,106470.0,0.0939429]
[1762187025275,0.15665,106480.0,106470.0,0.1551029]
[1762187025472,0.15665,106480.0,106470.0,0.5159029]
[1762187025675,0.49389,106480.0,106470.0,0.64371806]
[1762187025876,0.49389,106480.0,106470.0,0.83775529]
[1762187026177,0.49389,106480.0,106470.0,0.58331806]
[1762187026381,0.49389,106480.0,106470.0,0.5159029]
[1762187026678,0.49389,106480.0,106470.0,0.5763029]
[1762187026879,0.15665,106480.0,106470.0,0.77434013]
[1762187027472,0.15665,106480.0,106470.0,0.77034013]
[1762187027675,0.15665,106480.0,106470.0,0.5803029]
[1762187027881,0.250586,106480.0,106470.0,0.5803029]
[1762187028273,0.250586,106480.0,106470.0,0.64771806]
[1762187028672,0.05914,106480.0,106470.0,0.64771806]
[1762187028877,0.46466021,106490.0,106480.0,0.2154961]
[1762187029080,0.55858751,106490.0,106480.0,0.6267795]
[1762187029274,0.55858751,106490.0,106480.0,0.2659795]
[1762187029579,0.46466021,106490.0,106480.0,0.2659795]
[1762187029784,0.45569,106490.0,106480.0,0.6267795]
[1762187030176,0.45569,106490.0,106480.0,0.5762961]
[1762187030376,0.11853,106490.0,106480.0,0.5772961]
[1762187030880,0.49072,106500.0,106490.0,0.2154874]
[1762187031083,0.11853,106500.0,106490.0,0.82077954]
[1762187031276,0.15665,106500.0,106490.0,0.62674231]
[1762187031478,0.2505685,106500.0,106490.0,0.5762874]
[1762187031676,0.2124574,106490.0,106480.0,0.81510329]
[1762187031984,0.11853,106490.0,106480.0,0.28290606]
[1762187032178,0.7918874,106490.0,106480.0,0.05045029]
[1762187032482,0.5496174,106490.0,106480.0,0.05045029]
[1762187033182,0.5496174,106490.0,106480.0,0.0939362]
[1762187033477,0.2505862,106480.0,106470.0,0.83775219]
[1762187033675,0.15665,106480.0,106470.0,0.83775219]
[1762187034075,0.11853,106490.0,106480.0,0.2154962]
[1762187034276,0.45565,106490.0,106480.0,0.64371136]
[1762187034473,0.11853,106490.0,106480.0,0.64371136]
[1762187034778,0.2124573,106490.0,106480.0,0.64471136]
[1762187034979,0.11853,106490.0,106480.0,0.64471136]
[1762187035580,0.212458,106490.0,106480.0,0.64471136]
[1762187036181,0.11853,106490.0,106480.0,0.64471136]
[1762187036386,0.2124581,106490.0,106480.0,0.64471136]
[1762187036684,0.2124581,106490.0,106480.0,0.28391206]
[1762187036882,0.11853,106490.0,106480.0,0.28391206]
[1762187037081,0.2124581,106490.0,106480.0,0.2164969]
[1762187037281,0.2124581,106490.0,106480.0,0.12256]
[1762187037591,0.2124581,106490.0,106480.0,0.2164969]
[1762187037982,0.11853,106490.0,106480.0,0.5772969]
[1762187038490,0.2124581,106490.0,106480.0,0.2164969]
[1762187038685,0.2124581,106490.0,106480.0,0.5772969]
[1762187038886,0.11853,106490.0,106480.0,0.5772969]
[1762187039280,0.05914,106490.0,106480.0,0.64471206]
[1762187039587,0.2124581,106490.0,106480.0,0.0949369]
[1762187039779,0.2124581,106490.0,106480.0,0.001]
[1762187039982,0.2124581,106490.0,106480.0,0.12256]
[1762187040176,0.11853,106490.0,106480.0,0.2164969]
[1762187040691,0.8080181,106490.0,106480.0,0.05152258]
[1762187040877,0.8080181,106490.0,106480.0,0.08521811]
[1762187041184,0.8080181,106490.0,106480.0,0.03469553]
[1762187041586,0.15665,106480.0,106470.0,0.05052258]
[1762187041787,1.28328723,106480.0,106470.0,0.05052258]
[1762187041987,0.11853,106470.0,106460.0,0.04543689]
[1762187042177,0.47933,106470.0,106460.0,0.04543689]
[1762187042383,0.71413,106470.0,106460.0,0.04525288]
[1762187042986,0.71413,106470.0,106460.0,2.88e-06]
[1762187043293,1.05113,106470.0,106460.0,2.88e-06]
[1762187044692,0.71413,106470.0,106460.0,2.88e-06]
[1762187044887,0.47933,106470.0,106460.0,0.21551758]
[1762187045097,0.45553,106470.0,106460.0,0.28292986]
[1762187045289,0.11853,106470.0,106460.0,0.28292986]
[1762187045485,0.39892,106500.0,106470.0,0.3094518]
[1762187045686,0.15665,106500.0,106490.0,0.0939282]
[1762187045893,0.49365,106500.0,106490.0,0.0939282]
[1762187046292,0.49365,106500.0,106490.0,0.4547282]
[1762187046594,0.11853,106500.0,106490.0,0.5158882]
[1762187046795,0.11853,106500.0,106490.0,0.5762882]
[1762187046995,0.06798674,106510.0,106500.0,0.1550796]
[1762187047297,0.46437674,106510.0,106500.0,0.5762796]
[1762187047489,0.46437674,106510.0,106500.0,0.6126596]
[1762187047692,0.45553,106510.0,106500.0,0.6126596]
[1762187048194,0.46432496,106510.0,106500.0,0.5158796]
[1762187048595,0.46432496,106510.0,106500.0,0.1550796]
[1762187048791,0.46432496,106510.0,106500.0,0.2154796]
[1762187048992,0.82512496,106510.0,106500.0,0.2154796]
[1762187049187,0.46432496,106510.0,106500.0,0.5762796]
[1762187049394,0.46432496,106510.0,106500.0,0.5772796]
[1762187049594,0.48233,106530.0,106520.0,0.0939042]
[1762187049794,0.81929,106530.0,106520.0,0.0939042]
[1762187050091,0.11853,106510.0,106500.0,0.6126596]
[1762187050292,0.11853,106510.0,106500.0,0.6136596]
[1762187050798,0.81629,106510.0,106500.0,0.0949196]
[1762187051692,0.81629,106510.0,106500.0,0.001]
[1762187051992,0.81629,106510.0,106490.0,0.0939314]
[1762187051993,0.11853,106500.0,106490.0,0.0939314]
[1762187052201,0.45545,106500.0,106490.0,0.2154914]
[1762187052588,0.11853,106500.0,106490.0,0.2154914]
[1762187052792,0.45541,106500.0,106490.0,0.5762914]
[1762187053191,0.11853,106500.0,106490.0,0.5762914]
[1762187053402,0.6113617,106520.0,106510.0,0.0939139]
[1762187053611,0.9482417,106520.0,106510.0,0.0939139]
[1762187054402,0.8460817,106520.0,106510.0,0.0939139]
[1762187054599,0.9482417,106520.0,106510.0,0.0939139]
[1762187054803,0.2110234,106500.0,106490.0,0.5744364]
[1762187054998,0.5479034,106500.0,106490.0,0.5744364]
[1762187055195,0.45398,106500.0,106490.0,0.2136364]
[1762187055395,0.1171,106500.0,106490.0,0.5764364]
[1762187055593,0.45394,106500.0,106490.0,0.5764364]
[1762187055791,0.1171,106500.0,106490.0,0.5764364]
[1762187055994,0.45394,106500.0,106490.0,0.2156364]
[1762187056196,0.5478638,106500.0,106490.0,0.2156364]
[1762187056397,0.5478638,106500.0,106490.0,0.28105156]
[1762187056701,0.1171,106490.0,106480.0,0.67824076]
[1762187057001,0.2110326,106490.0,106480.0,0.31744076]
[1762187057197,0.5718326,106490.0,106480.0,0.06318]
[1762187057398,0.5718326,106490.0,106470.0,0.85904206]
[1762187057399,0.2110414,106480.0,106470.0,0.28107536]
[1762187057695,0.9269314,106480.0,106470.0,0.06741516]
[1762187057894,1.1617314,106480.0,106460.0,0.06741516]
[1762187058199,1.00068743,106470.0,106460.0,0.06741516]
[1762187058400,0.245489,106460.0,106450.0,0.0843767]
[1762187058699,0.1171,106450.0,106440.0,0.29666386]
[1762187058903,0.4539,106450.0,106440.0,0.6930534]
[1762187059096,0.4627951,106450.0,106440.0,0.6930534]
[1762187059296,0.1259951,106450.0,106440.0,0.3322534]
[1762187059497,0.4627951,106450.0,106440.0,0.3322534]
[1762187059693,0.9175612,106450.0,106440.0,0.0843767]
[1762187059891,0.1171,106430.0,106420.0,0.1214867]
[1762187060095,1.1755,106430.0,106420.0,0.08750231]
[1762187060904,1.1755,106430.0,106420.0,0.00317624]
[1762187061199,1.41042,106430.0,106420.0,0.00317624]
[1762187061403,1.43300863,106430.0,106420.0,0.00317624]
[1762187061604,1.1755,106430.0,106420.0,0.00317624]
[1762187062097,1.48735723,106430.0,106390.0,0.3608]
[1762187062297,0.3608,106410.0,106380.0,0.49211924]
[1762187062496,0.69764,106410.0,106390.0,0.06318]
[1762187062695,0.69764,106410.0,106390.0,0.11971]
[1762187062892,0.9326,106410.0,106380.0,0.39809194]
[1762187063094,0.5718,106410.0,106390.0,0.3608]
[1762187063299,0.33684,106410.0,106400.0,0.3608]
[1762187063807,0.33684,106410.0,106400.0,0.6087101]
[1762187064701,0.07329511,106430.0,106410.0,0.11971]
[1762187064895,0.33688,106420.0,106410.0,0.48051]
[1762187066602,0.33688,106420.0,106410.0,0.3608]
[1762187066804,0.33688,106420.0,106410.0,0.48051]
[1762187067007,0.33688,106420.0,106410.0,0.5745113]
[1762187067211,0.33688,106420.0,106410.0,0.48051]
[1762187067500,0.33688,106420.0,106410.0,0.5745113]
[1762187067893,0.33688,106420.0,106410.0,0.48051]
[1762187068095,0.0939877,106430.0,106420.0,0.16487]
[1762187068298,0.78259,106440.0,106420.0,0.52567]
[1762187068598,0.8765648,106440.0,106430.0,0.12661]
[1762187068798,0.8765648,106440.0,106430.0,0.06489]
[1762187069198,0.5157648,106440.0,106430.0,0.42569]
[1762187069398,0.0939834,106430.0,106420.0,0.52567]
[1762187069701,0.3289034,106430.0,106420.0,0.52567]
[1762187069909,0.0939834,106430.0,106420.0,0.52567]
[1762187070302,0.0939836,106430.0,106420.0,0.52567]
[1762187071204,0.0939836,106430.0,106420.0,0.39906]
[1762187071399,0.0939836,106430.0,106420.0,0.03826]
[1762187071600,0.0939836,106430.0,106420.0,0.52567]
[1762187071802,0.0939836,106430.0,106420.0,0.52667]
[1762187072306,0.4308636,106430.0,106420.0,0.52667]
[1762187072909,0.5157706,106440.0,106430.0,0.12661]
[1762187073099,0.4308606,106440.0,106430.0,0.48741]
[1762187073495,0.0939748,106440.0,106430.0,0.42569]
[1762187073710,0.0939842,106430.0,106420.0,0.52667]
[1762187074306,0.4308219,106440.0,106430.0,0.12661]
[1762187074707,0.4308219,106440.0,106430.0,0.48741]
[1762187075109,0.4308619,106440.0,106430.0,0.48741]
[1762187075509,0.4308219,106440.0,106430.0,0.48741]
[1762187075705,0.0939819,106440.0,106430.0,0.6199579]
[1762187075907,0.0939748,106440.0,106430.0,0.6199579]
[1762187076207,0.0939748,106440.0,106430.0,0.12661]
[1762187076809,0.0939836,106430.0,106420.0,0.03926]
[1762187077003,0.0939836,106430.0,106420.0,0.10315]
[1762187077203,0.0939836,106430.0,106420.0,0.16487]
[1762187077610,0.3289036,106430.0,106410.0,0.3608]
[1762187077808,0.4308324,106420.0,106410.0,0.3608]
[1762187078402,0.4308324,106420.0,106410.0,0.48741]